fUSD/lending_fUSD_20250804
["ID","MTS","AMOUNT","RATE_DAILY","PERIOD"]
[377242929,1754306028905,-1446.54,0.00041369,2]
[377242930,1754306028915,-1346.03,0.00041369,2]
[377242931,1754306028925,-879.7,0.00041369,2]
[377242932,1754306028936,-1481.75,0.00041369,2]
[377242933,1754306028947,-400.0,0.00041369,2]
[377242934,1754306028960,-1081.44,0.00041369,2]
[377242935,1754306028970,-526.17249314,0.00041369,2]
[377242936,1754306028980,-2294.74,0.00041369,2]
[377242937,1754306028991,-768.31,0.00041369,2]
[377242938,1754306029000,-2185.11,0.00041369,2]
[377242939,1754306029010,-528.1,0.00041369,2]
[377242940,1754306029021,-764.62,0.00041369,2]
[377242941,1754306029031,-2154.11,0.00041369,2]
[377242942,1754306029041,-400.0,0.00041369,2]
[377242943,1754306029052,-1687.51,0.00041369,2]
[377242944,1754306029061,-1797.87,0.00041369,2]
[377242945,1754306029072,-884.68,0.00041369,2]
[377242946,1754306029081,-670.62,0.00041369,2]
[377242947,1754306029091,-466.07,0.00041369,2]
[377242948,1754306029102,-1427.05,0.00041369,2]
[377242949,1754306029112,-659.47,0.00041369,2]
[377242950,1754306029122,-1547.49,0.00041369,2]
[377242951,1754306029132,-430.38,0.00041369,2]
[377242952,1754306029141,-650.0,0.00041369,120]
[377242953,1754306029152,-400.0,0.00041369,2]
[377242954,1754306029162,-400.0,0.00041369,2]
[377242955,1754306029171,-948.07,0.00041369,2]
[377242956,1754306029181,-1424.69,0.00041369,2]
[377242957,1754306029190,-1692.45,0.00041369,2]
[377242958,1754306029200,-400.0,0.00041369,2]
[377242959,1754306029209,-1630.8,0.00041369,2]
[377242960,1754306029219,-840.48,0.00041369,2]
[377242961,1754306029228,-665.52,0.00041369,2]
[377242962,1754306029238,-870.74,0.00041369,2]
[377242963,1754306029248,-1068.48,0.00041369,2]
[377242964,1754306029257,-1702.7,0.00041369,2]
[377242965,1754306029267,-727.65,0.00041369,2]
[377242966,1754306029277,-469.7,0.00041369,2]
[377242967,1754306029287,-1107.78,0.00041369,2]
[377242968,1754306029297,-1880.84,0.00041369,2]
[377242969,1754306029306,-813.9,0.00041369,2]
[377242970,1754306029315,-400.0,0.00041369,2]
[377242971,1754306029325,-874.7,0.00041369,2]
[377242972,1754306029334,-400.0,0.00041369,2]
[377242973,1754306029345,-400.0,0.00041369,2]
[377242974,1754306029354,-426.16,0.00041369,2]
[377242975,1754306029364,-1110.47,0.00041369,2]
[377242976,1754306029373,-665.68,0.00041369,2]
[377242977,1754306029383,-400.0,0.00041369,2]
[377242978,1754306029393,-903.87,0.00041369,2]
[377242979,1754306029403,-470.81,0.00041369,2]
[377242980,1754306029412,-1358.5,0.00041369,2]
[377242981,1754306029422,-440.85,0.00041369,2]
[377242982,1754306029432,-1246.04,0.00041369,2]
[377242983,1754306029441,-1647.73,0.00041369,2]
[377242984,1754306029451,-924.22,0.00041369,2]
[377242985,1754306029460,-994.67,0.00041369,2]
[377242986,1754306029470,-1443.42,0.00041369,2]
[377242987,1754306029480,-472.86,0.00041369,2]
[377242988,1754306029490,-770.36,0.00041369,2]
[377242989,1754306029500,-1946.52,0.00041369,2]
[377242990,1754306029509,-979.61,0.00041369,2]
[377242991,1754306029519,-222.18257214,0.00041369,2]
[377242992,1754306029528,-400.0,0.00041369,2]
[377242993,1754306029538,-400.0,0.00041369,2]
[377242994,1754306029547,-2101.73,0.00041369,2]
[377242995,1754306029557,-860.7,0.00041369,2]
[377242996,1754306029567,-645.5,0.00041369,2]
[377242997,1754306029577,-537.4,0.00041369,2]
[377242998,1754306029587,-537.04,0.00041369,2]
[377242999,1754306029597,-450.14,0.00041369,2]
[377243000,1754306029607,-798.27,0.00041369,2]
[377243001,1754306029617,-1175.36,0.00041369,2]
[377243002,1754306029629,-456.48,0.00041369,2]
[377243003,1754306029639,-1226.27,0.00041369,2]
[377243004,1754306029648,-939.52,0.00041369,2]
[377243005,1754306029658,-482.35,0.00041369,2]
[377243006,1754306029668,-1154.12,0.00041369,2]
[377243007,1754306029678,-400.0,0.00041369,2]
[377243008,1754306029688,-842.4,0.00041369,2]
[377243009,1754306029697,-400.0,0.00041369,2]
[377243010,1754306029708,-869.19,0.00041369,2]
[377243011,1754306029718,-700.37,0.00041369,2]
[377243012,1754306029728,-400.0,0.00041369,2]
[377243013,1754306029740,-1000.94,0.00041369,2]
[377243014,1754306029751,-1791.49,0.00041369,2]
[377243015,1754306029761,-1221.49,0.00041369,2]
[377243016,1754306029772,-400.0,0.00041369,2]
[377243017,1754306029782,-1747.77,0.00041369,2]
[377243018,1754306029794,-400.0,0.00041369,2]
[377243019,1754306029803,-786.99,0.00041369,2]
[377243020,1754306029814,-991.24,0.00041369,2]
[377243021,1754306029823,-1316.83,0.00041369,2]
[377243022,1754306029832,-1344.32,0.00041369,2]
[377243023,1754306029842,-755.49,0.00041369,2]
[377243024,1754306029852,-778.88,0.00041369,2]
[377243025,1754306029861,-1539.3,0.00041369,2]
[377243026,1754306029871,-444.22,0.00041369,2]
[377243027,1754306029880,-1258.35,0.00041369,2]
[377243028,1754306029889,-400.0,0.00041369,2]
[377243029,1754306029899,-400.0,0.00041369,2]
[377243030,1754306029909,-1113.84,0.00041369,2]
[377243031,1754306029918,-400.0,0.00041369,2]
[377243032,1754306029928,-1182.86,0.00041369,2]
[377243033,1754306029937,-1278.85,0.00041369,2]
[377243034,1754306029947,-4729.89,0.00041369,2]
[377243035,1754306029962,-454.82,0.00041369,2]
[377243036,1754306029971,-775.41,0.00041369,2]
[377243037,1754306029982,-1031.98,0.00041369,2]
[377243038,1754306029991,-1202.77,0.00041369,2]
[377243039,1754306030000,-492.55,0.00041369,2]
[377243040,1754306030011,-400.0,0.00041369,2]
[377243041,1754306030020,-400.0,0.00041369,2]
[377243042,1754306030029,-1481.93,0.00041369,2]
[377243043,1754306030038,-1675.62,0.00041369,2]
[377243044,1754306030048,-584.39,0.00041369,2]
[377243045,1754306030058,-679.61,0.00041369,2]
[377243046,1754306030067,-744.37,0.00041369,2]
[377243047,1754306030077,-2502.12,0.00041369,2]
[377243048,1754306030086,-1340.53,0.00041369,2]
[377243049,1754306030095,-1012.72,0.00041369,2]
[377243050,1754306030104,-815.04,0.00041369,2]
[377243051,1754306030114,-2328.28,0.00041369,2]
[377243052,1754306030124,-1484.28,0.00041369,2]
[377243053,1754306030133,-1969.15,0.00041369,2]
[377243054,1754306030142,-1435.3,0.00041369,2]
[377243055,1754306030152,-400.0,0.00041369,2]
[377243056,1754306030161,-400.0,0.00041369,2]
[377243057,1754306030171,-400.0,0.00041369,2]
[377243058,1754306030180,-913.42,0.00041369,2]
[377243059,1754306030189,-1703.95,0.00041369,2]
[377243060,1754306030198,-2504.25,0.00041369,2]
[377243061,1754306030207,-741.38,0.00041369,2]
[377243062,1754306030217,-1030.22,0.00041369,2]
[377243063,1754306030226,-400.0,0.00041369,2]
[377243064,1754306030235,-372.11754242,0.00041369,2]
[377243065,1754306030245,-400.0,0.00041369,2]
[377243066,1754306030254,-400.0,0.00041369,2]
[377243067,1754306030264,-1237.75,0.00041369,2]
[377243068,1754306030273,-623.67,0.00041369,2]
[377243069,1754306030284,-400.0,0.00041369,2]
[377243070,1754306030293,-992.32,0.00041369,2]
[377243071,1754306030302,-602.81,0.00041369,2]
[377243072,1754306030312,-400.0,0.00041369,2]
[377243073,1754306030322,-400.0,0.00041369,2]
[377243074,1754306030331,-400.0,0.00041369,2]
[377243075,1754306030341,-537.5,0.00041369,2]
[377243076,1754306030350,-956.99,0.00041369,2]
[377243077,1754306030359,-630.59,0.00041369,2]
[377243078,1754306030369,-1585.73,0.00041369,2]
[377243079,1754306030379,-1301.61,0.00041369,2]
[377243080,1754306030388,-1889.25,0.00041369,2]
[377243081,1754306030398,-641.71,0.00041369,2]
[377243082,1754306030408,-400.0,0.00041369,2]
[377243083,1754306030417,-924.72,0.00041369,2]
[377243084,1754306030427,-1059.24,0.00041369,2]
[377243085,1754306030437,-2092.15,0.00041369,2]
[377243086,1754306030446,-533.38,0.00041369,2]
[377243087,1754306030455,-890.3,0.00041369,2]
[377243088,1754306030798,-501.38,0.00041369,2]
[377243089,1754306030809,-1366.75,0.00041369,2]
[377243090,1754306030820,-690.08,0.00041369,2]
[377243091,1754306030830,-1441.16,0.00041369,2]
[377243092,1754306030840,-400.0,0.00041369,2]
[377243093,1754306030849,-990.2,0.00041369,2]
[377243094,1754306030859,-803.42,0.00041369,2]
[377243095,1754306030869,-645.51,0.00041369,2]
[377243096,1754306030881,-400.0,0.00041369,2]
[377243097,1754306030891,-545.68,0.00041369,2]
[377243098,1754306030902,-400.0,0.00041369,2]
[377243099,1754306030911,-726.21,0.00041369,2]
[377243100,1754306030921,-400.0,0.00041369,2]
[377243101,1754306030931,-506.95,0.00041369,2]
[377243102,1754306030941,-788.62,0.00041369,2]
[377243103,1754306030952,-931.05,0.00041369,2]
[377243104,1754306030963,-400.0,0.00041369,2]
[377243105,1754306030973,-2071.07,0.00041369,2]
[377243106,1754306030984,-552.88,0.00041369,2]
[377243107,1754306030994,-1077.59,0.00041369,2]
[377243108,1754306031003,-400.0,0.00041369,2]
[377243109,1754306031014,-400.0,0.00041369,2]
[377243110,1754306031024,-551.2,0.00041369,2]
[377243111,1754306031035,-1479.72,0.00041369,2]
[377243112,1754306031046,-400.0,0.00041369,2]
[377243113,1754306031057,-418.78,0.00041369,120]
[377243114,1754306031068,-400.0,0.00041369,2]
[377243115,1754306031078,-628.0,0.00041369,2]
[377243116,1754306031087,-400.0,0.00041369,2]
[377243117,1754306031097,-400.0,0.00041369,2]
[377243118,1754306031107,-1186.41,0.00041369,2]
[377243119,1754306031116,-1047.92,0.00041369,2]
[377243120,1754306031126,-242.92647995,0.00041369,2]
[377243121,1754306031135,-882.59,0.00041369,2]
[377243122,1754306031145,-845.07,0.00041369,2]
[377243123,1754306031155,-1368.23,0.00041369,2]
[377243124,1754306031165,-627.42,0.00041369,2]
[377243125,1754306031175,-1654.02,0.00041369,2]
[377243126,1754306031186,-1022.16,0.00041369,2]
[377243127,1754306031196,-928.07,0.00041369,2]
[377243128,1754306031205,-463.65,0.00041369,2]
[377243129,1754306031215,-987.02,0.00041369,2]
[377243130,1754306031225,-1127.8,0.00041369,2]
[377243131,1754306031234,-1457.97,0.00041369,2]
[377243132,1754306031244,-1263.43,0.00041369,2]
[377243133,1754306031253,-732.77,0.00041369,2]
[377243134,1754306031263,-1212.72,0.00041369,2]
[377243135,1754306031273,-1364.75,0.00041369,2]
[377243136,1754306031282,-3088.08,0.00041369,2]
[377243137,1754306031291,-342.24397421,0.00041369,2]
[377243138,1754306031301,-1963.71,0.00041369,2]
[377243139,1754306031311,-400.0,0.00041369,2]
[377243140,1754306031321,-669.31,0.00041369,2]
[377243141,1754306031331,-1338.78,0.00041369,2]
[377243142,1754306031341,-470.83,0.00041369,2]
[377243143,1754306031352,-1725.86,0.00041369,2]
[377243144,1754306031361,-1157.0,0.00041369,2]
[377243145,1754306031371,-400.0,0.00041369,2]
[377243146,1754306031381,-1049.12,0.00041369,2]
[377243147,1754306031391,-888.73,0.00041369,2]
[377243148,1754306031400,-719.82,0.00041369,2]
[377243149,1754306031410,-574.83,0.00041369,2]
[377243150,1754306031419,-1718.88,0.00041369,2]
[377243151,1754306031429,-1630.61,0.00041369,2]
[377243152,1754306031438,-629.17,0.00041369,2]
[377243153,1754306031448,-400.0,0.00041369,2]
[377243154,1754306031459,-1303.32,0.00041369,2]
[377243155,1754306031468,-666.66,0.00041369,2]
[377243156,1754306031479,-603.36,0.00041369,2]
[377243157,1754306031491,-495.64,0.00041369,2]
[377243158,1754306031500,-1485.45,0.00041369,2]
[377243159,1754306031510,-718.11,0.00041369,2]
[377243160,1754306031520,-400.0,0.00041369,2]
[377243161,1754306031530,-1307.14,0.00041369,2]
[377243162,1754306031539,-1527.44,0.00041369,2]
[377243163,1754306031549,-234.81600992,0.00041369,2]
[377243164,1754306031559,-1110.24,0.00041369,2]
[377243165,1754306031569,-869.15,0.00041369,2]
[377243166,1754306031580,-536.27,0.00041369,2]
[377243167,1754306031590,-1091.81,0.00041369,2]
[377243168,1754306031600,-1130.18,0.00041369,2]
[377243169,1754306031609,-400.0,0.00041369,2]
[377243170,1754306031619,-1117.05,0.00041369,2]
[377243171,1754306031630,-905.65,0.00041369,2]
[377243172,1754306031640,-1075.79,0.00041369,2]
[377243173,1754306031650,-471.33,0.00041369,2]
[377243174,1754306031659,-966.32,0.00041369,2]
[377243175,1754306031668,-400.0,0.00041369,2]
[377243176,1754306031678,-798.59,0.00041369,2]
[377243177,1754306031688,-400.0,0.00041369,2]
[377243178,1754306031699,-1284.95,0.00041369,2]
[377243179,1754306031709,-1354.83,0.00041369,2]
[377243180,1754306031719,-912.08,0.00041369,2]
[377243181,1754306031729,-1268.26,0.00041369,2]
[377243182,1754306031741,-862.24,0.00041369,2]
[377243183,1754306031750,-631.36,0.00041369,2]
[377243184,1754306031762,-1400.07,0.00041369,2]
[377243185,1754306031780,-699.87,0.00041369,2]
[377243186,1754306031791,-1343.86,0.00041369,2]
[377243187,1754306031802,-743.43,0.00041369,2]
[377243188,1754306031812,-418.89,0.00041369,2]
[377243189,1754306031823,-616.73,0.00041369,2]
[377243190,1754306031833,-400.0,0.00041369,2]
[377243191,1754306031843,-927.18,0.00041369,2]
[377243192,1754306031852,-875.84,0.00041369,2]
[377243193,1754306031862,-1329.19,0.00041369,2]
[377243194,1754306031871,-434.19,0.00041369,2]
[377243195,1754306031880,-1658.94,0.00041369,2]
[377243196,1754306031890,-1333.24,0.00041369,2]
[377243197,1754306031900,-400.0,0.00041369,2]
[377243198,1754306031910,-967.63,0.00041369,2]
[377243199,1754306031919,-1263.4,0.00041369,2]
[377243200,1754306031929,-414.76,0.00041369,2]
[377243201,1754306031942,-400.0,0.00041369,2]
[377243202,1754306031953,-400.0,0.00041369,2]
[377243203,1754306031964,-944.68,0.00041369,2]
[377243204,1754306031973,-1252.38,0.00041369,2]
[377243205,1754306031982,-400.0,0.00041369,2]
[377243206,1754306031992,-412.29,0.00041369,2]
[377243207,1754306032002,-605.41,0.00041369,2]
[377243208,1754306032012,-1748.2,0.00041369,2]
[377243209,1754306032021,-1117.53,0.00041369,2]
[377243210,1754306032032,-2048.38,0.00041369,2]
[377243211,1754306032041,-886.22,0.00041369,2]
[377243212,1754306032050,-3038.05,0.00041369,2]
[377243213,1754306032059,-611.63,0.00041369,2]
[377243214,1754306032069,-400.0,0.00041369,2]
[377243215,1754306032079,-1068.97,0.00041369,2]
[377243216,1754306032088,-673.68,0.00041369,2]
[377243217,1754306032098,-1348.61,0.00041369,2]
[377243218,1754306032107,-4263.58,0.00041369,2]
[377243219,1754306032117,-590.51,0.00041369,2]
[377243220,1754306032127,-400.0,0.00041369,2]
[377243221,1754306032137,-841.94,0.00041369,2]
[377243222,1754306032146,-1374.4,0.00041369,2]
[377243223,1754306032156,-661.31,0.00041369,2]
[377243224,1754306032166,-888.64,0.00041369,2]
[377243225,1754306032175,-1281.23,0.00041369,2]
[377243226,1754306032184,-1778.85,0.00041369,2]
[377243227,1754306032194,-1558.5,0.00041369,2]
[377243228,1754306032203,-838.38,0.00041369,2]
[377243229,1754306032213,-1793.86,0.00041369,2]
[377243230,1754306032223,-632.03,0.00041369,2]
[377243231,1754306032232,-719.42,0.00041369,2]
[377243232,1754306032242,-2346.34,0.00041369,2]
[377243233,1754306032252,-2208.08,0.00041369,2]
[377243234,1754306032261,-400.0,0.00041369,2]
[377243235,1754306032271,-2121.06,0.00041369,2]
[377243236,1754306032281,-6220.24,0.00041369,2]
[377243237,1754306032290,-2028.4,0.00041369,2]
[377243238,1754306032301,-959.16,0.00041369,2]
[377243239,1754306032311,-1009.99,0.00041369,2]
[377243240,1754306032321,-400.0,0.00041369,2]
[377243241,1754306032332,-1169.71,0.00041369,2]
[377243242,1754306032341,-693.34,0.00041369,2]
[377243243,1754306032351,-1366.07,0.00041369,2]
[377243244,1754306032360,-1689.54,0.00041369,2]
[377243245,1754306032370,-1421.12,0.00041369,2]
[377243246,1754306032379,-1110.66,0.00041369,2]
[377243247,1754306032388,-487.34,0.00041369,2]
[377243248,1754306032397,-401.93,0.00041369,2]
[377243249,1754306032407,-2122.58,0.00041369,2]
[377243250,1754306032415,-548.21,0.00041369,2]
[377243251,1754306032424,-2428.92,0.00041369,2]
[377243252,1754306032432,-1096.89,0.00041369,2]
[377243253,1754306032441,-400.0,0.00041369,2]
[377243254,1754306032450,-558.13,0.00041369,2]
[377243255,1754306032458,-1162.47,0.00041369,2]
[377243256,1754306032467,-683.16,0.00041369,2]
[377243257,1754306032476,-4527.79,0.00041369,2]
[377243258,1754306032486,-688.63,0.00041369,2]
[377243259,1754306032495,-787.49,0.00041369,2]
[377243260,1754306032505,-400.0,0.00041369,2]
[377243261,1754306032515,-5396.72,0.00041369,2]
[377243262,1754306032524,-642.79,0.00041369,2]
[377243263,1754306032534,-400.0,0.00041369,2]
[377243264,1754306032543,-400.0,0.00041369,2]
[377243265,1754306032552,-1940.04,0.00041369,2]
[377243266,1754306032562,-400.0,0.00041369,2]
[377243267,1754306032571,-400.0,0.00041369,2]
[377243268,1754306032581,-4563.07,0.00041369,2]
[377243269,1754306032591,-1973.82,0.00041369,2]
[377243270,1754306032600,-1666.37,0.00041369,2]
[377243271,1754306032609,-400.0,0.00041369,2]
[377243272,1754306032618,-412.23769858,0.00041369,2]
[377243273,1754306032626,-524.97,0.00041369,2]
[377243274,1754306032636,-962.89,0.00041369,2]
[377243275,1754306032645,-778.62,0.00041369,2]
[377243276,1754306032655,-1536.5,0.00041369,2]
[377243277,1754306032664,-1125.71,0.00041369,2]
[377243278,1754306032674,-802.26,0.00041369,2]
[377243279,1754306032683,-8227.11,0.00041369,2]
[377243280,1754306032693,-400.0,0.00041369,2]
[377243281,1754306032702,-770.91,0.00041369,2]
[377243282,1754306032712,-11138.27,0.00041369,2]
[377243283,1754306032722,-2940.43,0.00041369,2]
[377243284,1754306032731,-458.47,0.00041369,2]
[377243285,1754306032740,-2047.73,0.00041369,2]
[377243286,1754306032749,-1728.23,0.00041369,2]
[377243287,1754306032758,-2159.66,0.00041369,2]
[377243288,1754306032784,-1756.78,0.00041369,2]
[377243289,1754306032794,-445.29,0.00041369,2]
[377243290,1754306032803,-2736.99,0.00041369,2]
[377243291,1754306032812,-1618.06,0.00041369,2]
[377243292,1754306032821,-581.83,0.00041369,2]
[377243293,1754306032830,-893.35,0.00041369,2]
[377243294,1754306032838,-1865.31,0.00041369,2]
[377243295,1754306032847,-400.0,0.00041369,2]
[377243296,1754306032856,-1394.73,0.00041369,2]
[377243297,1754306032866,-1087.63,0.00041369,2]
[377243298,1754306032875,-3648.6,0.00041369,2]
[377243299,1754306032885,-997.42,0.00041369,2]
[377243300,1754306032894,-1873.61,0.00041369,2]
[377243301,1754306032903,-1200.71,0.00041369,2]
[377243302,1754306032913,-9079.6,0.00041369,2]
[377243303,1754306032922,-400.0,0.00041369,2]
[377243304,1754306032932,-510.65,0.00041369,2]
[377243305,1754306032941,-520.48,0.00041369,2]
[377243306,1754306032952,-1629.46,0.00041369,2]
[377243307,1754306032962,-531.96,0.00041369,2]
[377243308,1754306032971,-875.07,0.00041369,2]
[377243309,1754306032980,-3451.49,0.00041369,2]
[377243310,1754306032989,-688.87,0.00041369,2]
[377243311,1754306032999,-6021.56,0.00041369,2]
[377243312,1754306033008,-1001.01,0.00041369,2]
[377243313,1754306033017,-400.0,0.00041369,2]
[377243314,1754306033027,-1875.95,0.00041369,2]
[377243315,1754306033036,-659.18,0.00041369,2]
[377243316,1754306033045,-618.84,0.00041369,2]
[377243317,1754306033055,-491.69,0.00041369,2]
[377243318,1754306033064,-905.16,0.00041369,2]
[377243319,1754306033073,-476.99,0.00041369,2]
[377243320,1754306033082,-1286.32,0.00041369,2]
[377243321,1754306033091,-713.76,0.00041369,2]
[377243322,1754306033101,-580.3,0.00041369,2]
[377243323,1754306033110,-1377.16,0.00041369,2]
[377243324,1754306033119,-727.44,0.00041369,2]
[377243325,1754306033129,-1539.83,0.00041369,2]
[377243326,1754306033138,-582.52,0.00041369,2]
[377243327,1754306033147,-400.0,0.00041369,2]
[377243328,1754306033157,-406.58,0.00041369,2]
[377243329,1754306033166,-2160.03,0.00041369,2]
[377243330,1754306033176,-1891.71,0.00041369,2]
[377243331,1754306033313,-3107.23,0.00041369,2]
[377243332,1754306033324,-1732.93,0.00041369,2]
[377243333,1754306033334,-1032.57,0.00041369,2]
[377243334,1754306033343,-6316.72,0.00041369,2]
[377243335,1754306033353,-379.22124614,0.00041369,2]
[377243336,1754306033362,-1238.95,0.00041369,2]
[377243337,1754306033372,-1515.13,0.00041369,2]
[377243338,1754306033381,-1066.08,0.00041369,2]
[377243339,1754306033391,-2052.93,0.00041369,2]
[377243340,1754306033400,-1868.67,0.00041369,2]
[377243341,1754306033409,-533.88,0.00041369,2]
[377243342,1754306033418,-1698.39,0.00041369,2]
[377243343,1754306033428,-1689.09,0.00041369,2]
[377243344,1754306033437,-1178.78,0.00041369,2]
[377243345,1754306033447,-942.3,0.00041369,2]
[377243346,1754306033456,-1670.39,0.00041369,2]
[377243347,1754306033465,-400.0,0.00041369,2]
[377243348,1754306033475,-1644.64,0.00041369,2]
[377243349,1754306033484,-1545.77,0.00041369,2]
[377243350,1754306033494,-1113.34,0.00041369,2]
[377243351,1754306033503,-1572.92,0.00041369,2]
[377243352,1754306033513,-1766.11,0.00041369,2]
[377243353,1754306033523,-8388.36,0.00041369,2]
[377243354,1754306033532,-1722.33,0.00041369,2]
[377243355,1754306033541,-819.3,0.00041369,2]
[377243356,1754306033550,-1306.14,0.00041369,2]
[377243357,1754306033559,-1596.57,0.00041369,2]
[377243358,1754306033569,-400.0,0.00041369,2]
[377243359,1754306033579,-1501.24,0.00041369,2]
[377243360,1754306033588,-1264.88,0.00041369,2]
[377243361,1754306033597,-431.73,0.00041369,2]
[377243362,1754306033607,-1010.21,0.00041369,2]
[377243363,1754306033616,-1156.04,0.00041369,2]
[377243364,1754306033625,-873.38,0.00041369,2]
[377243365,1754306033634,-4195.1,0.00041369,2]
[377243366,1754306033644,-1925.04,0.00041369,2]
[377243367,1754306033653,-714.27,0.00041369,2]
[377243368,1754306033662,-400.0,0.00041369,2]
[377243369,1754306033671,-1469.78,0.00041369,2]
[377243370,1754306033680,-817.57,0.00041369,2]
[377243371,1754306033690,-1923.74,0.00041369,2]
[377243372,1754306033700,-694.89,0.00041369,2]
[377243373,1754306033710,-400.0,0.00041369,2]
[377243374,1754306033720,-670.37,0.00041369,2]
[377243375,1754306033729,-1746.78,0.00041369,2]
[377243376,1754306033739,-1448.9,0.00041369,2]
[377243377,1754306033748,-1747.36,0.00041369,2]
[377243378,1754306033759,-1337.16,0.00041369,2]
[377243379,1754306033769,-5776.09,0.00041369,2]
[377243380,1754306033780,-1374.38,0.00041369,2]
[377243381,1754306033791,-400.0,0.00041369,2]
[377243382,1754306033802,-1793.17,0.00041369,2]
[377243383,1754306033812,-1183.71,0.00041369,2]
[377243384,1754306033821,-400.0,0.00041369,2]
[377243385,1754306033832,-400.0,0.00041369,2]
[377243386,1754306033841,-6346.76,0.00041369,2]
[377243387,1754306033851,-455.16,0.00041369,2]
[377243388,1754306033860,-400.0,0.00041369,2]
[377243389,1754306033869,-1230.85,0.00041369,2]
[377243390,1754306033879,-1208.54,0.00041369,2]
[377243391,1754306033888,-424.00461893,0.00041369,2]
[377243392,1754306033898,-1363.88,0.00041369,2]
[377243393,1754306033908,-482.44,0.00041369,2]
[377243394,1754306033917,-941.56,0.00041369,2]
[377243395,1754306033927,-1603.12,0.00041369,2]
[377243396,1754306033936,-2444.62,0.00041369,2]
[377243397,1754306033945,-968.13,0.00041369,2]
[377243398,1754306033958,-521.68,0.00041369,2]
[377243399,1754306033967,-642.68,0.00041369,2]
[377243400,1754306033976,-400.0,0.00041369,2]
[377243401,1754306033985,-1266.17,0.00041369,2]
[377243402,1754306033993,-532.52,0.00041369,2]
[377243403,1754306034003,-403.29,0.00041369,2]
[377243404,1754306034012,-1754.23,0.00041369,2]
[377243405,1754306034021,-2358.63,0.00041369,2]
[377243406,1754306034030,-2154.85,0.00041369,2]
[377243407,1754306034040,-400.0,0.00041369,2]
[377243408,1754306034050,-403.11,0.00041369,2]
[377243409,1754306034059,-759.33,0.00041369,2]
[377243410,1754306034069,-1873.9,0.00041369,2]
[377243411,1754306034078,-400.0,0.00041369,2]
[377243412,1754306034088,-1735.99,0.00041369,2]
[377243413,1754306034098,-1686.63,0.00041369,2]
[377243414,1754306034108,-1673.67,0.00041369,2]
[377243415,1754306034116,-914.89,0.00041369,2]
[377243416,1754306034126,-1754.05,0.00041369,2]
[377243417,1754306034135,-1464.44,0.00041369,2]
[377243418,1754306034145,-1593.33,0.00041369,2]
[377243419,1754306034154,-773.62,0.00041369,2]
[377243420,1754306034167,-1378.84,0.00041369,2]
[377243421,1754306034177,-783.24,0.00041369,2]
[377243422,1754306034187,-652.46,0.00041369,2]
[377243423,1754306034196,-2045.74,0.00041369,2]
[377243424,1754306034204,-4332.09,0.00041369,2]
[377243425,1754306034214,-557.78,0.00041369,2]
[377243426,1754306034224,-505.58,0.00041369,2]
[377243427,1754306034234,-781.05,0.00041369,2]
[377243428,1754306034243,-1582.56,0.00041369,2]